fUST/lending_fUST_20250112
["ID","MTS","AMOUNT","RATE_DAILY","PERIOD"]
[348629112,1736689835941,-500.0,0.00019178,2]
[348629114,1736689835950,-500.0,0.00019178,2]
[348629116,1736689835960,-500.0,0.00019178,2]
[348629118,1736689835970,-500.0,0.00019178,2]
[348629120,1736689835980,-500.0,0.00019178,2]
[348629131,1736689835990,-500.0,0.00019178,2]
[348629133,1736689836100,-500.0,0.00019178,2]
[348629135,1736689836110,-500.0,0.00019178,2]
[348629137,1736689836119,-500.0,0.00019178,2]
[348629139,1736689836132,-744.73,0.00019178,2]
[348629141,1736689836144,-501.4155558,0.00019178,2]
[348629143,1736689836153,-4930.02,0.00019178,2]
[348629145,1736689836162,-500.0,0.00019178,2]
[348629147,1736689836171,-749.14,0.00019178,2]
[348629149,1736689836181,-749.14,0.00019178,2]
[348629151,1736689836190,-749.14,0.00019178,2]
[348629153,1736689836199,-749.14,0.00019178,2]
[348629155,1736689836208,-749.14,0.00019178,2]
[348629157,1736689836217,-1104.87,0.00019178,2]
[348629159,1736689836227,-749.14,0.00019178,2]
[348629161,1736689836236,-749.14,0.00019178,2]
[348629163,1736689836246,-749.14,0.00019178,2]
[348629165,1736689836255,-749.14,0.00019178,2]
[348629167,1736689836264,-500.0,0.00019178,2]
[348629169,1736689836273,-500.0,0.00019178,2]
[348629171,1736689836282,-500.0,0.00019178,2]
[348629173,1736689836293,-500.0,0.00019178,2]
[348629175,1736689836303,-500.0,0.00019178,2]
[348629177,1736689836313,-500.0,0.00019178,2]
[348629179,1736689836322,-500.0,0.00019178,2]
[348629181,1736689836332,-500.0,0.00019178,2]
[348629183,1736689836341,-500.0,0.00019178,2]
[348629185,1736689836351,-500.0,0.00019178,2]
[348629187,1736689836360,-500.0,0.00019178,2]
[348629189,1736689836369,-500.0,0.00019178,2]
[348629191,1736689836378,-500.0,0.00019178,2]
[348629193,1736689836388,-500.0,0.00019178,2]
[348629195,1736689836397,-500.0,0.00019178,2]
[348629197,1736689836406,-500.0,0.00019178,2]
[348629199,1736689836415,-503.00481932,0.00019178,2]
[348629201,1736689836425,-500.0,0.00019178,2]
[348629203,1736689836434,-628.79,0.00019178,2]
[348629205,1736689836443,-151.0,0.00019178,2]
[348629207,1736689836452,-151.0,0.00019178,2]
[348629209,1736689836462,-151.0,0.00019178,2]
[348629211,1736689836471,-500.0,0.00019178,2]
[348629213,1736689836481,-151.0,0.00019178,2]
[348629215,1736689836490,-245.846742,0.00019178,2]
[348629217,1736689836499,-500.0,0.00019178,2]
[348629219,1736689836510,-500.0,0.00019178,2]
[348629221,1736689836519,-500.0,0.00019178,2]
[348629223,1736689836529,-500.0,0.00019178,2]
[348629225,1736689836539,-500.0,0.00019178,2]
[348629227,1736689836548,-500.0,0.00019178,2]
[348629229,1736689836557,-500.0,0.00019178,2]
[348629231,1736689836566,-500.0,0.00019178,2]
[348629233,1736689836575,-500.0,0.00019178,2]
[348629234,1736689836585,-202.04903747,0.00019178,2]
[348629235,1736689836594,-500.0,0.00019178,2]
[348629237,1736689836603,-500.0,0.00019178,2]
[348629239,1736689836612,-524.39906635,0.00019178,2]
[348629241,1736689836621,-530.52706844,0.00019178,2]
[348629243,1736689836630,-500.0,0.00019178,2]
[348629245,1736689836640,-500.0,0.00019178,2]
[348629247,1736689836649,-500.0,0.00019178,2]
[348629249,1736689836658,-500.0,0.00019178,2]
[348629251,1736689836667,-500.0,0.00019178,2]
[348629253,1736689836676,-500.0,0.00019178,2]
[348629255,1736689836685,-631.63063216,0.00019178,2]
[348629257,1736689836695,-500.0,0.00019178,2]
[348629259,1736689836704,-500.0,0.00019178,2]
[348629261,1736689836713,-151.0,0.00019178,2]
[348629263,1736689836722,-152.831469,0.00019178,2]
[348629265,1736689836731,-500.0,0.00019178,2]
[348629267,1736689836741,-500.0,0.00019178,2]
[348629269,1736689836750,-151.0,0.00019178,2]
[348629271,1736689836760,-151.0,0.00019178,2]
[348629272,1736689836773,-151.0,0.00019178,2]
[348629274,1736689836782,-247.81097,0.00019178,2]
[348629276,1736689836793,-500.0,0.00019178,2]
[348629278,1736689836803,-500.0,0.00019178,2]
[348629280,1736689836812,-500.0,0.00019178,2]
[348629282,1736689836821,-500.0,0.00019178,2]
[348629283,1736689836830,-500.0,0.00019178,2]
[348629285,1736689836839,-500.0,0.00019178,2]
[348629287,1736689836849,-500.0,0.00019178,2]
[348629289,1736689836858,-2615.15,0.00019178,2]
[348629290,1736689836868,-1028.57,0.00019178,2]
[348629291,1736689836877,-500.0,0.00019178,2]
[348629292,1736689836886,-501.11898917,0.00019178,2]
[348629293,1736689836895,-500.0,0.00019178,2]
[348629294,1736689836906,-500.0,0.00019178,2]
[348629295,1736689836915,-151.0,0.00019178,2]
[348629296,1736689836924,-185.64,0.00019178,2]
[348629297,1736689836933,-151.0,0.00019178,2]
[348629298,1736689836942,-264.44047,0.00019178,2]
[348629299,1736689836951,-500.0,0.00019178,2]
[348629300,1736689836960,-506.38171243,0.00019178,2]
[348629301,1736689836969,-24798.72,0.00019178,2]
[348629302,1736689836978,-964.09,0.00019178,2]
[348629303,1736689836987,-618.957452,0.00019178,2]
[348629304,1736689836996,-500.71619713,0.00019178,2]
[348629305,1736689837006,-618.957452,0.00019178,2]
[348629306,1736689837015,-1093.05,0.00019178,2]
[348629307,1736689837025,-618.957452,0.00019178,2]
[348629308,1736689837035,-500.0,0.00019178,2]
[348629309,1736689837044,-618.957452,0.00019178,2]
[348629310,1736689837053,-618.957452,0.00019178,2]
[348629311,1736689837062,-618.957452,0.00019178,2]
[348629312,1736689837071,-618.957452,0.00019178,2]
[348629313,1736689837080,-618.957452,0.00019178,2]
[348629314,1736689837089,-618.957452,0.00019178,2]
[348629315,1736689837098,-618.957452,0.00019178,2]
[348629316,1736689837107,-618.957452,0.00019178,2]
[348629317,1736689837117,-618.957452,0.00019178,2]
[348629318,1736689837126,-505.8179829,0.00019178,2]
[348629319,1736689837135,-618.957452,0.00019178,2]
[348629320,1736689837145,-618.957452,0.00019178,2]
[348629321,1736689837154,-618.957452,0.00019178,2]
[348629322,1736689837163,-618.957452,0.00019178,2]
[348629323,1736689837172,-151.0,0.00019178,2]
[348629324,1736689837181,-618.957452,0.00019178,2]
[348629325,1736689837191,-151.0,0.00019178,2]
[348629326,1736689837200,-618.957452,0.00019178,2]
[348629327,1736689837209,-151.0,0.00019178,2]
[348629328,1736689837219,-151.0,0.00019178,2]
[348629329,1736689837228,-555.51,0.00019178,2]
[348629330,1736689837237,-504.50171401,0.00019178,2]
[348629331,1736689837247,-500.0,0.00019178,2]
[348629332,1736689837256,-500.0,0.00019178,2]
[348629333,1736689837265,-1110.54,0.00019178,2]
[348629334,1736689837275,-500.0,0.00019178,2]
[348629335,1736689837284,-500.0,0.00019178,2]
[348629336,1736689837294,-500.0,0.00019178,2]
[348629337,1736689837303,-500.0,0.00019178,2]
[348629338,1736689837312,-644.21,0.00019178,2]
[348629339,1736689837321,-500.0,0.00019178,2]
[348629340,1736689837331,-500.0,0.00019178,2]
[348629341,1736689837341,-500.0,0.00019178,2]
[348629342,1736689837350,-500.0,0.00019178,2]
[348629343,1736689837359,-951.56,0.00019178,2]
[348629344,1736689837368,-169.67,0.00019178,2]
[348629345,1736689837377,-500.0,0.00019178,2]
[348629346,1736689837386,-504.34364401,0.00019178,2]
[348629347,1736689837395,-500.0,0.00019178,2]
[348629348,1736689837405,-500.0,0.00019178,2]
[348629349,1736689837414,-600.96645704,0.00019178,2]
[348629350,1736689837423,-500.0,0.00019178,2]
[348629351,1736689837432,-5709.53,0.00019178,2]
[348629352,1736689837441,-500.63383513,0.00019178,2]
[348629353,1736689837452,-504.706764,0.00019178,2]
[348629354,1736689837462,-478.43558541,0.00019178,2]
[348629355,1736689837471,-500.0,0.00019178,2]
[348629357,1736689837480,-500.0,0.00019178,2]
[348629358,1736689837490,-612.5610324,0.00019178,2]
[348629361,1736689837500,-500.0,0.00019178,2]
[348629362,1736689837510,-500.0,0.00019178,2]
[348629363,1736689837519,-500.0,0.00019178,2]
[348629364,1736689837528,-425.77290614,0.00019178,2]
[348629366,1736689837539,-1108.38,0.00019178,2]
[348629368,1736689837548,-500.0,0.00019178,2]
[348629369,1736689837557,-500.0,0.00019178,2]
[348629370,1736689837566,-3689.03,0.00019178,2]
[348629371,1736689837575,-500.0,0.00019178,2]
[348629372,1736689837585,-500.0,0.00019178,2]
[348629373,1736689837594,-500.0,0.00019178,2]
[348629374,1736689837603,-500.0,0.00019178,2]
[348629375,1736689837612,-500.0,0.00019178,2]
[348629376,1736689837621,-327.85231687,0.00019178,2]
[348629377,1736689837630,-500.0,0.00019178,2]
[348629378,1736689837639,-500.0,0.00019178,2]
[348629379,1736689837649,-500.0,0.00019178,2]
[348629380,1736689837658,-500.0,0.00019178,2]
[348629381,1736689837667,-500.0,0.00019178,2]
[348629382,1736689837676,-500.0,0.00019178,2]
[348629383,1736689837685,-500.82314656,0.00019178,2]
[348629384,1736689837695,-500.0,0.00019178,2]
[348629385,1736689837705,-500.0,0.00019178,2]
[348629386,1736689837714,-784.19,0.00019178,2]
[348629387,1736689837723,-500.0,0.00019178,2]
[348629388,1736689837732,-500.0,0.00019178,2]
[348629389,1736689837741,-501.03617159,0.00019178,2]
[348629390,1736689837750,-500.0,0.00019178,2]
[348629391,1736689837761,-1011.54,0.00019178,2]
[348629392,1736689837773,-500.0,0.00019178,2]
[348629393,1736689837782,-500.0,0.00019178,2]
[348629394,1736689837792,-500.0,0.00019178,2]
[348629395,1736689837801,-500.0,0.00019178,2]
[348629396,1736689837812,-500.0,0.00019178,2]
[348629397,1736689837821,-151.0,0.00019178,2]
[348629398,1736689837830,-151.0,0.00019178,2]
[348629399,1736689837839,-151.0,0.00019178,2]
[348629400,1736689837848,-151.0,0.00019178,2]
[348629401,1736689837858,-500.0,0.00019178,2]
[348629402,1736689837867,-151.0,0.00019178,2]
[348629403,1736689837877,-159.767616,0.00019178,2]
[348629404,1736689837886,-500.0,0.00019178,2]
[348629405,1736689837895,-500.0,0.00019178,2]
[348629406,1736689837904,-500.0,0.00019178,2]
[348629407,1736689837913,-731.29,0.00019178,2]
[348629408,1736689837923,-500.0,0.00019178,2]
[348629409,1736689837932,-2128.77,0.00019178,2]
[348629410,1736689837941,-500.0,0.00019178,2]
[348629411,1736689837951,-500.0,0.00019178,2]
[348629412,1736689837960,-500.0,0.00019178,2]
[348629413,1736689837969,-500.0,0.00019178,2]
[348629414,1736689837978,-1610.22,0.00019178,2]
[348629415,1736689837987,-500.0,0.00019178,2]
[348629416,1736689837997,-1610.22,0.00019178,2]
[348629417,1736689838006,-500.0,0.00019178,2]
[348629418,1736689838016,-1610.22,0.00019178,2]
[348629419,1736689838025,-2677.5,0.00019178,2]
[348629420,1736689838034,-1610.22,0.00019178,2]
[348629421,1736689838044,-1207.73,0.00019178,2]
[348629422,1736689838053,-1610.22,0.00019178,2]
[348629423,1736689838062,-151.0,0.00019178,2]
[348629424,1736689838072,-1610.22,0.00019178,2]
[348629425,1736689838081,-500.78095554,0.00019178,2]
[348629426,1736689838090,-151.0,0.00019178,2]
[348629427,1736689838099,-151.0,0.00019178,2]
[348629428,1736689838109,-247.520734,0.00019178,2]
[348629429,1736689838120,-1610.22,0.00019178,2]
[348629430,1736689838129,-1610.22,0.00019178,2]
[348629431,1736689838139,-500.0,0.00019178,2]
[348629432,1736689838148,-1610.22,0.00019178,2]
[348629433,1736689838157,-530.11250684,0.00019178,2]
[348629434,1736689838167,-500.0,0.00019178,2]
[348629435,1736689838176,-500.0,0.00019178,2]
[348629436,1736689838185,-500.0,0.00019178,2]
[348629437,1736689838195,-500.0,0.00019178,2]
[348629438,1736689838204,-500.0,0.00019178,2]
[348629439,1736689838214,-1038.7,0.00019178,2]
[348629440,1736689838224,-151.0,0.00019178,2]
[348629442,1736689838233,-151.0,0.00019178,2]
[348629444,1736689838242,-151.0,0.00019178,2]
[348629452,1736689838334,-500.0,0.00019178,2]
[348629453,1736689838344,-500.0,0.00019178,2]
[348629455,1736689838354,-151.0,0.00019178,2]
[348629457,1736689838364,-1046.5,0.00019178,2]
[348629459,1736689838373,-500.0,0.00019178,2]
[348629461,1736689838383,-500.0,0.00019178,2]
[348629463,1736689838392,-1037.1,0.00019178,2]
[348629465,1736689838402,-500.0,0.00019178,2]
[348629467,1736689838411,-151.0,0.00019178,2]
[348629469,1736689838420,-500.0,0.00019178,2]
[348629471,1736689838430,-708.92,0.00019178,2]
[348629473,1736689838439,-500.0,0.00019178,2]
[348629475,1736689838448,-500.0,0.00019178,2]
[348629477,1736689838457,-2351.95,0.00019178,2]
[348629479,1736689838467,-500.0,0.00019178,2]
[348629481,1736689838476,-863.55,0.00019178,2]
[348629483,1736689838486,-3999.65,0.00019178,2]
[348629485,1736689838496,-573.73,0.00019178,2]
[348629487,1736689838506,-500.0,0.00019178,2]
[348629489,1736689838515,-1066.54,0.00019178,2]
[348629491,1736689838524,-500.0,0.00019178,2]
[348629493,1736689838533,-500.0,0.00019178,2]
[348629495,1736689838544,-500.0,0.00019178,2]
[348629497,1736689838553,-500.0,0.00019178,2]
[348629499,1736689838562,-500.0,0.00019178,2]
[348629501,1736689838571,-675.95,0.00019178,2]
[348629503,1736689838581,-500.0,0.00019178,2]
[348629505,1736689838590,-500.0,0.00019178,2]
[348629507,1736689838600,-500.0,0.00019178,2]
[348629509,1736689838610,-164.46859,0.00019178,2]
[348629511,1736689838619,-153.7491537,0.00019178,2]
[348629513,1736689838629,-369.5182454,0.00019257,2]
[348629515,1736689838638,-151.0,0.000193,2]
[348629517,1736689838647,-500.0,0.00019318,3]
[348629519,1736689838657,-749.14,0.00019318,3]
[348629521,1736689838666,-150.559,0.00019319,2]
[348629523,1736689838675,-2073.0,0.00019319,2]
[348629525,1736689838684,-536.849,0.00019319,2]
[348629527,1736689838694,-2315.0,0.00019319,2]
[348629529,1736689838703,-151.327,0.00019319,2]
[348629531,1736689838712,-151.0,0.00019319,2]
[348629533,1736689838721,-151.0,0.00019347,2]
[348629535,1736689838730,-3000.0,0.00019352,2]
[348629537,1736689838739,-151.0,0.000194,2]
[348629539,1736689838748,-618.957452,0.000194,2]
[348629541,1736689838758,-618.957454,0.000194,2]
[348629543,1736689838771,-619.0,0.000194,2]
[348629545,1736689838781,-591.79366746,0.00019422,2]
[348629547,1736689838791,-151.0,0.00019451,2]
[348629549,1736689838800,-228.594055,0.00019451,2]
[348629551,1736689838810,-500.0,0.00019451,3]
[348629553,1736689838819,-500.0,0.00019451,3]
[348629555,1736689838828,-500.0,0.00019451,3]
[348629556,1736689838837,-500.0,0.00019451,3]
[348629559,1736689838848,-500.0,0.00019451,3]
[348629560,1736689838858,-749.14,0.00019451,3]
[348629562,1736689838867,-749.14,0.00019451,3]
[348629564,1736689838876,-749.14,0.00019451,3]
[348629566,1736689838886,-749.14,0.00019451,3]
[348629568,1736689838895,-749.14,0.00019451,3]
[348629570,1736689838905,-500.0,0.00019451,3]
[348629572,1736689838915,-500.0,0.00019451,3]
[348629574,1736689838924,-500.0,0.00019451,3]
[348629576,1736689838934,-500.0,0.00019451,3]
[348629578,1736689838943,-500.0,0.00019451,3]
[348629580,1736689838952,-1610.22,0.00019451,3]
[348629582,1736689838961,-1610.22,0.00019451,3]
[348629584,1736689838971,-1610.22,0.00019451,3]
[348629586,1736689838980,-1610.22,0.00019451,3]
[348629588,1736689838990,-1610.22,0.00019451,3]
[348629590,1736689838999,-1610.22,0.00019451,3]
[348629592,1736689839008,-160.55810013,0.00019451,2]
[348629594,1736689839018,-500.0,0.00019452,3]
[348629596,1736689839027,-151.0,0.00019452,2]
[348629598,1736689839037,-151.0,0.00019452,2]
[348629600,1736689839047,-151.0,0.00019452,2]
[348629602,1736689839056,-500.0,0.00019452,3]
[348629604,1736689839065,-151.0,0.00019452,2]
[348629606,1736689839074,-151.0,0.00019452,2]
[348629608,1736689839083,-151.0,0.00019452,2]
[348629610,1736689839092,-151.0,0.00019452,2]
[348629612,1736689839102,-151.0,0.00019452,2]
[348629614,1736689839111,-151.0,0.00019452,2]
[348629616,1736689839120,-151.0,0.00019452,2]
[348629618,1736689839129,-172.492362,0.00019452,2]
[348629620,1736689839138,-501.31218835,0.00019452,3]
[348629622,1736689839147,-151.0,0.00019452,2]
[348629624,1736689839156,-251.449428,0.00019452,2]
[348629626,1736689839165,-502.07739639,0.00019452,3]
[348629628,1736689839174,-500.0,0.00019452,3]
[348629630,1736689839183,-501.90451538,0.00019452,3]
[348629632,1736689839193,-502.31592598,0.00019452,3]
[348629634,1736689839201,-501.77579928,0.00019452,3]
[348629635,1736689839210,-542.57,0.00019452,3]
[348629637,1736689839219,-500.0,0.00019452,3]
[348629639,1736689839228,-226.258969,0.00019452,2]
[348629641,1736689839237,-226.258969,0.00019452,2]
[348629643,1736689839246,-226.258969,0.00019452,2]
[348629645,1736689839256,-226.258969,0.00019452,2]
[348629647,1736689839265,-226.258969,0.00019452,2]
[348629649,1736689839274,-226.258969,0.00019452,2]
[348629651,1736689839284,-226.258969,0.00019452,2]
[348629653,1736689839293,-226.258969,0.00019452,2]
[348629655,1736689839302,-501.88078831,0.00019452,3]
[348629657,1736689839312,-668.7,0.00019452,3]
[348629659,1736689839322,-487.20387669,0.00019452,3]
[348629661,1736689839331,-500.0,0.00019452,3]
[348629663,1736689839341,-500.0,0.00019452,3]
[348629665,1736689839350,-500.0,0.00019452,3]
[348629667,1736689839359,-500.0,0.00019452,3]
[348629669,1736689839369,-500.0,0.00019452,3]
[348629671,1736689839378,-944.9,0.00019452,3]
[348629673,1736689839387,-500.0,0.00019452,3]
[348629675,1736689839396,-500.0,0.00019452,3]
[348629677,1736689839405,-500.0,0.00019452,3]
[348629679,1736689839415,-500.0,0.00019452,3]
[348629681,1736689839424,-500.0,0.00019452,3]
[348629683,1736689839433,-500.0,0.00019452,3]
[348629685,1736689839443,-543.42457993,0.00019452,3]
[348629688,1736689839456,-500.0,0.00019452,3]
[348629690,1736689839466,-500.0,0.00019452,3]
[348629692,1736689839475,-500.0,0.00019452,3]
[348629695,1736689839487,-631.68,0.00019452,3]
[348629697,1736689839496,-500.0,0.00019452,3]
[348629699,1736689839506,-500.0,0.00019452,3]
[348629701,1736689839515,-500.0,0.00019452,3]
[348629703,1736689839524,-500.0,0.00019452,3]
[348629705,1736689839532,-187.01735348,0.00019452,3]
[348629707,1736689839542,-500.0,0.00019452,3]
[348629709,1736689839552,-500.0,0.00019452,3]
[348629711,1736689839562,-500.0,0.00019452,3]
[348629713,1736689839571,-500.0,0.00019452,3]
[348629715,1736689839580,-500.0,0.00019452,3]
[348629717,1736689839589,-500.0,0.00019452,3]
[348629719,1736689839598,-500.0,0.00019452,3]
[348629721,1736689839608,-159.1127503,0.00019452,3]
[348629723,1736689839617,-500.0,0.00019452,3]
[348629725,1736689839626,-503.71390737,0.00019452,3]
[348629727,1736689839635,-500.0,0.00019452,3]
[348629728,1736689839645,-610.82,0.00019452,3]
[348629730,1736689839654,-501.22116682,0.00019452,3]
[348629732,1736689839664,-504.38637758,0.00019452,3]
[348629734,1736689839673,-555.41835795,0.00019452,3]
[348629737,1736689839683,-510.96916891,0.00019452,3]
[348629739,1736689839693,-751.45,0.00019452,3]
[348629741,1736689839702,-500.0,0.00019452,3]
[348629742,1736689839712,-287.932868,0.00019452,2]
[348629744,1736689839721,-502.73923988,0.00019452,3]
[348629746,1736689839731,-500.0,0.00019452,3]
[348629748,1736689839740,-502.733197,0.00019452,3]
[348629750,1736689839750,-500.0,0.00019452,3]
[348629752,1736689839759,-500.0,0.00019452,3]
[348629754,1736689839771,-500.0,0.00019452,3]
[348629756,1736689839781,-500.0,0.00019452,3]
[348629758,1736689839791,-500.0,0.00019452,3]
[348629760,1736689839800,-500.0,0.00019452,3]
[348629762,1736689839811,-500.0,0.00019452,3]
[348629764,1736689839820,-771.54,0.00019452,3]
[348629766,1736689839830,-639.84,0.00019452,3]
[348629768,1736689839840,-298.86176807,0.00019452,3]
[348629770,1736689839849,-500.0,0.00019452,3]
[348629772,1736689839859,-500.0,0.00019452,3]
[348629774,1736689839868,-500.0,0.00019452,3]
[348629776,1736689839877,-500.0,0.00019452,3]
[348629778,1736689839886,-500.0,0.00019452,3]
[348629780,1736689839895,-500.0,0.00019452,3]
[348629782,1736689839905,-500.0,0.00019452,3]
[348629784,1736689839915,-500.0,0.00019452,3]
[348629786,1736689839924,-500.0,0.00019452,3]
[348629787,1736689839933,-169.754806,0.00019452,2]
[348629789,1736689839943,-5332.4,0.00019452,3]
[348629791,1736689839952,-500.0,0.00019452,3]
[348629793,1736689839961,-444.46133545,0.00019452,3]
[348629795,1736689839971,-500.0,0.00019452,3]
[348629797,1736689839980,-500.0,0.00019452,3]
[348629799,1736689839989,-500.0,0.00019452,3]
[348629801,1736689839998,-151.0,0.00019452,2]
[348629803,1736689840007,-151.0,0.00019452,2]
[348629805,1736689840016,-500.0,0.00019452,3]
[348629807,1736689840026,-151.0,0.00019452,2]
[348629809,1736689840035,-226.480958,0.00019452,2]
[348629811,1736689840045,-503.80891113,0.00019452,3]
[348629813,1736689840054,-500.0,0.00019452,3]
[348629815,1736689840063,-500.0,0.00019452,3]
[348629817,1736689840072,-591.07862295,0.00019452,3]
[348629819,1736689840082,-500.0,0.00019452,3]
[348629821,1736689840091,-1000.0,0.00019452,3]
[348629823,1736689840101,-502.6781038,0.00019452,3]
[348629825,1736689840110,-500.0,0.00019452,3]
[348629827,1736689840119,-500.0,0.00019452,3]
[348629829,1736689840129,-744.73,0.00019452,3]
[348629831,1736689840138,-500.0,0.00019452,3]
[348629833,1736689840147,-4930.02,0.00019452,3]
[348629835,1736689840156,-1104.87,0.00019452,3]
[348629837,1736689840165,-500.0,0.00019452,3]
[348629839,1736689840174,-181.75132204,0.00019452,3]
[348629841,1736689840183,-500.0,0.00019452,3]
[348629843,1736689840192,-500.0,0.00019452,3]
[348629845,1736689840201,-500.0,0.00019452,3]
[348629847,1736689840211,-628.79,0.00019452,3]
[348629849,1736689840220,-511.61,0.00019452,3]
[348629851,1736689840229,-500.0,0.00019452,3]
[348629853,1736689840238,-500.0,0.00019452,3]
[348629855,1736689840247,-371.35335422,0.00019452,3]
[348629857,1736689840256,-500.0,0.00019452,3]
[348629858,1736689840266,-500.0,0.00019452,3]
[348629860,1736689840275,-500.0,0.00019452,3]
[348629862,1736689840284,-500.0,0.00019452,3]
[348629864,1736689840294,-2615.15,0.00019452,3]
[348629866,1736689840303,-1028.57,0.00019452,3]
[348629868,1736689840312,-500.0,0.00019452,3]
[348629879,1736689840406,-500.0,0.00019452,3]
[348629881,1736689840415,-500.0,0.00019452,3]
[348629883,1736689840425,-24798.72,0.00019452,3]
[348629885,1736689840434,-964.09,0.00019452,3]
[348629887,1736689840443,-1093.05,0.00019452,3]
[348629889,1736689840453,-555.51,0.00019452,3]
[348629891,1736689840462,-1110.54,0.00019452,3]
[348629893,1736689840472,-644.21,0.00019452,3]
[348629895,1736689840481,-951.56,0.00019452,3]
[348629897,1736689840491,-500.0,0.00019452,3]
[348629899,1736689840501,-5709.53,0.00019452,2]
[348629901,1736689840510,-500.0,0.00019452,3]
[348629903,1736689840521,-500.0,0.00019452,3]
[348629904,1736689840530,-500.0,0.00019452,3]
[348629906,1736689840540,-1108.38,0.00019452,3]
[348629908,1736689840549,-500.0,0.00019452,3]
[348629910,1736689840558,-3689.03,0.00019452,3]
[348629912,1736689840568,-500.0,0.00019452,3]
[348629914,1736689840577,-500.0,0.00019452,3]
[348629916,1736689840586,-784.19,0.00019452,3]
[348629918,1736689840595,-509.62451974,0.00019452,3]
[348629920,1736689840604,-500.0,0.00019452,3]
[348629922,1736689840614,-1011.54,0.00019452,3]
[348629924,1736689840623,-500.0,0.00019452,3]
[348629926,1736689840632,-500.0,0.00019452,3]
[348629928,1736689840641,-500.0,0.00019452,3]
[348629930,1736689840651,-500.0,0.00019452,3]
[348629932,1736689840661,-321.90149206,0.00019452,3]
[348629934,1736689840670,-500.0,0.00019452,3]
[348629936,1736689840679,-500.0,0.00019452,3]
[348629937,1736689840688,-731.29,0.00019452,3]
[348629938,1736689840697,-2128.77,0.00019452,3]
[348629939,1736689840706,-500.0,0.00019452,3]
[348629940,1736689840715,-500.0,0.00019452,3]
[348629941,1736689840725,-2677.5,0.00019452,3]
[348629942,1736689840734,-1207.73,0.00019452,3]
[348629943,1736689840743,-1038.7,0.00019452,3]
[348629944,1736689840753,-500.0,0.00019452,3]
[348629945,1736689840763,-1046.5,0.00019452,3]
[348629946,1736689840775,-407.10005717,0.00019452,3]
[348629947,1736689840784,-500.0,0.00019452,3]
[348629948,1736689840794,-1037.1,0.00019452,3]
[348629949,1736689840803,-500.0,0.00019452,2]
[348629950,1736689840814,-708.92,0.00019452,3]
[348629951,1736689840823,-500.0,0.00019452,3]
[348629952,1736689840832,-2351.95,0.00019452,3]
[348629954,1736689840843,-500.0,0.00019452,3]
[348629956,1736689840851,-863.55,0.00019452,3]
[348629957,1736689840860,-3999.65,0.00019452,3]
[348629959,1736689840870,-573.73,0.00019452,3]
[348629961,1736689840879,-1066.54,0.00019452,3]
[348629963,1736689840887,-500.0,0.00019452,3]
[348629965,1736689840897,-500.0,0.00019452,3]
[348629967,1736689840905,-503.86339934,0.00019452,3]